fUSD/lending_fUSD_20240831
["ID","MTS","AMOUNT","RATE_DAILY","PERIOD"]
[336731233,1725085390225,-500.0,0.00042739,120]
[336731234,1725085390276,-500.0,0.00042739,120]
[336731235,1725085390322,-2224.87,0.00042739,120]
[336731236,1725085390374,-500.0,0.00042739,120]
[336731237,1725085390421,-1322.92,0.00042739,120]
[336731238,1725085390468,-2404.44,0.00042739,120]
[336731239,1725085390515,-500.0,0.00042739,120]
[336731240,1725085390560,-901.41,0.00042739,120]
[336731241,1725085390608,-610.01,0.00042739,120]
[336731242,1725085390656,-729.12,0.00042739,120]
[336731243,1725085390701,-500.0,0.00042739,120]
[336731244,1725085390747,-1979.21,0.00042739,120]
[336731245,1725085390792,-577.81,0.00042739,120]
[336731246,1725085390836,-500.0,0.00042739,120]
[336731247,1725085390880,-6226.26,0.00042739,120]
[336731248,1725085390928,-666.11,0.00042739,120]
[336731249,1725085390978,-500.0,0.00042739,120]
[336731250,1725085391025,-500.0,0.00042739,120]
[336731251,1725085391073,-2083.88,0.00042739,120]
[336731252,1725085391122,-2247.13,0.00042739,120]
[336731253,1725085391171,-3075.22,0.00042739,120]
[336731254,1725085391216,-2368.94,0.00042739,120]
[336731255,1725085391271,-173.52,0.0004274,91]
[336731256,1725085391325,-601.6218928,0.000428,60]
[336731257,1725085391377,-228.70346031,0.0004288,120]
[336731258,1725085391430,-318.34004554,0.000429,60]
[336731259,1725085391475,-150.0,0.00042929,120]
[336731260,1725085391702,-3539.9,0.00042943,94]
[336731261,1725085391752,-1000.0,0.00042954,120]
[336731262,1725085391803,-150.0,0.00042969,120]
[336731263,1725085391853,-1865.9363364,0.00043,120]
[336731264,1725085391902,-500000.0,0.00043,120]
[336731265,1725085391952,-633.55525834,0.00043,120]
[336731266,1725085392000,-2261.89942028,0.00043,120]
[336731267,1725085392053,-1275.8929542,0.00043,120]
[336731268,1725085392100,-2000.0,0.00043099,120]
[336731269,1725085392150,-150.0,0.00043149,120]
[336731270,1725085392200,-518.16680331,0.0004318,120]
[336731271,1725085392248,-1000.0,0.00043248,120]
[336731272,1725085392298,-2142.76,0.00043287,120]
[336731273,1725085392348,-416.54795895,0.00043287,120]
[336731274,1725085392400,-500.0,0.00043287,120]
[336731275,1725085392450,-500.0,0.00043287,120]
[336731276,1725085392503,-500.0,0.00043287,120]
[336731277,1725085392558,-500.0,0.00043287,120]
[336731278,1725085392622,-374.95218477,0.00043287,120]
[336731279,1725085392674,-500.0,0.00043287,120]
[336731280,1725085392723,-500.0,0.00043287,120]
[336731281,1725085392774,-970.41,0.00043287,120]
[336731282,1725085392826,-500.0,0.00043287,120]
[336731283,1725085392876,-500.51746021,0.00043287,120]
[336731284,1725085392926,-1254.2,0.00043287,120]
[336731285,1725085392975,-2064.59,0.00043287,120]
[336731286,1725085393024,-500.0,0.00043287,120]
[336731287,1725085393075,-1831.01,0.00043287,120]
[336731288,1725085393128,-1397.22,0.00043287,120]
[336731289,1725085393182,-500.0,0.00043287,120]
[336731290,1725085393238,-2245.78,0.00043287,120]
[336731291,1725085393297,-500.0,0.00043287,120]
[336731292,1725085393354,-1552.31,0.00043287,120]
[336731293,1725085393413,-2597.83,0.00043287,120]
[336731294,1725085393472,-500.0,0.00043287,120]
[336731295,1725085393530,-1035.53,0.00043287,120]
[336731296,1725085393586,-500.0,0.00043287,120]
[336731297,1725085393642,-744.82,0.00043287,120]
[336731298,1725085393699,-696.59,0.00043287,120]
[336731299,1725085393755,-673.61,0.00043287,120]
[336731300,1725085393813,-1520.87,0.00043287,120]
[336731301,1725085393873,-582.5,0.00043287,120]
[336731302,1725085393930,-500.0,0.00043287,120]
[336731303,1725085393987,-531.38,0.00043287,120]
[336731304,1725085394042,-1554.54,0.00043287,120]
[336731305,1725085394100,-1271.21,0.00043287,120]
[336731306,1725085394155,-506.46,0.00043287,120]
[336731307,1725085394212,-500.0,0.00043287,120]
[336731308,1725085394270,-500.0,0.00043287,120]
[336731309,1725085394322,-525.09,0.00043287,120]
[336731310,1725085394375,-917.3,0.00043287,120]
[336731311,1725085394428,-500.0,0.00043287,120]
[336731312,1725085394482,-500.0,0.00043287,120]
[336731313,1725085394533,-500.0,0.00043287,120]
[336731314,1725085394586,-996.95,0.00043287,120]
[336731315,1725085394640,-696.4,0.00043287,120]
[336731316,1725085394691,-500.0,0.00043287,120]
[336731317,1725085394742,-803.74,0.00043287,120]
[336731318,1725085394795,-748.83,0.00043287,120]
[336731319,1725085394846,-500.0,0.00043287,120]
[336731320,1725085394895,-568.05,0.00043287,120]
[336731321,1725085394942,-1168.88,0.00043287,120]
[336731322,1725085394987,-761.86,0.00043287,120]
[336731323,1725085395034,-991.52,0.00043287,120]
[336731324,1725085395082,-500.0,0.00043287,120]
[336731325,1725085395129,-433.71799843,0.00043287,120]
[336731326,1725085395176,-1384.4,0.00043287,120]
[336731327,1725085395224,-731.6,0.00043287,120]
[336731328,1725085395271,-500.0,0.00043287,120]
[336731329,1725085395321,-2458.49,0.00043287,120]
[336731330,1725085395372,-500.0,0.00043287,120]
[336731331,1725085395423,-540.27,0.00043287,120]
[336731332,1725085395474,-500.0,0.00043287,120]
[336731333,1725085395524,-500.0,0.00043287,120]
[336731334,1725085395575,-500.0,0.00043287,120]
[336731335,1725085395626,-2118.23,0.00043287,120]
[336731336,1725085395679,-600.38,0.00043287,120]
[336731337,1725085395729,-522.69,0.00043287,120]
[336731338,1725085395782,-1210.64,0.00043287,120]
[336731339,1725085395835,-500.0,0.00043287,120]
[336731340,1725085395887,-500.0,0.00043287,120]
[336731341,1725085395940,-1856.52,0.00043287,120]
[336731342,1725085395993,-500.0,0.00043287,120]
[336731343,1725085396046,-500.0,0.00043287,120]
[336731344,1725085396100,-856.67,0.00043287,120]
[336731345,1725085396152,-1905.46,0.00043287,120]
[336731346,1725085396202,-1521.24,0.00043287,120]
[336731347,1725085396252,-500.0,0.00043287,120]
[336731348,1725085396304,-547.37,0.00043287,120]
[336731349,1725085396355,-500.0,0.00043287,120]
[336731350,1725085396405,-660.11,0.00043287,120]
[336731351,1725085396456,-2325.34,0.00043287,120]
[336731352,1725085396504,-501.74,0.00043287,120]
[336731353,1725085396554,-849.88,0.00043287,120]
[336731354,1725085396606,-2388.65,0.00043287,120]
[336731355,1725085396655,-500.0,0.00043287,120]
[336731356,1725085396706,-2070.59,0.00043287,120]
[336731357,1725085396754,-500.0,0.00043287,120]
[336731358,1725085396804,-1982.62,0.00043287,120]
[336731359,1725085396852,-546.14480754,0.00043287,120]
[336731360,1725085396899,-500.0,0.00043287,120]
[336731361,1725085396948,-500.0,0.00043287,120]
[336731362,1725085396996,-2073.66,0.00043287,120]
[336731363,1725085397048,-909.97,0.00043287,120]
[336731364,1725085397297,-500.0,0.00043287,120]
[336731365,1725085397348,-523.5,0.00043287,120]
[336731366,1725085397400,-500.0,0.00043287,120]
[336731367,1725085397453,-500.0,0.00043287,120]
[336731368,1725085397505,-2189.52,0.00043287,120]
[336731369,1725085397557,-500.0,0.00043287,120]
[336731370,1725085397608,-1371.6,0.00043287,120]
[336731371,1725085397660,-804.7,0.00043287,120]
[336731372,1725085397714,-1112.52,0.00043287,120]
[336731373,1725085397765,-2039.92,0.00043287,120]
[336731374,1725085397816,-964.65,0.00043287,120]
[336731375,1725085397869,-500.0,0.00043287,120]
[336731376,1725085397920,-500.0,0.00043287,120]
[336731377,1725085397972,-1312.09,0.00043287,120]
[336731378,1725085398023,-500.0,0.00043287,120]
[336731379,1725085398076,-1782.75,0.00043287,120]
[336731380,1725085398126,-500.0,0.00043287,120]
[336731381,1725085398176,-1702.92,0.00043287,120]
[336731382,1725085398230,-1029.68,0.00043287,120]
[336731383,1725085398284,-2092.19,0.00043287,120]
[336731384,1725085398340,-1324.2,0.00043287,120]
[336731385,1725085398397,-500.0,0.00043287,120]
[336731386,1725085398452,-500.0,0.00043287,120]
[336731387,1725085398509,-500.0,0.00043287,120]
[336731388,1725085398566,-500.0,0.00043287,120]
[336731389,1725085398621,-687.53,0.00043287,120]
[336731390,1725085398676,-500.0,0.00043287,120]
[336731391,1725085398731,-1577.57,0.00043287,120]
[336731392,1725085398787,-927.35,0.00043287,120]
[336731393,1725085398841,-1633.84,0.00043287,120]
[336731394,1725085398896,-500.0,0.00043287,120]
[336731395,1725085398950,-525.87988057,0.00043287,120]
[336731396,1725085399003,-500.0,0.00043287,120]
[336731397,1725085399057,-500.0,0.00043287,120]
[336731398,1725085399108,-500.0,0.00043287,120]
[336731399,1725085399162,-500.0,0.00043287,120]
[336731400,1725085399213,-500.0,0.00043287,120]
[336731401,1725085399272,-1255.1,0.00043287,120]
[336731402,1725085399331,-961.72,0.00043287,120]
[336731403,1725085399390,-553.73,0.00043287,120]
[336731404,1725085399448,-793.38,0.00043287,120]
[336731405,1725085399498,-2218.72,0.00043287,120]
[336731406,1725085399550,-1344.82,0.00043287,120]
[336731407,1725085399599,-500.0,0.00043287,120]
[336731408,1725085399652,-500.0,0.00043287,120]
[336731409,1725085399704,-846.91,0.00043287,120]
[336731410,1725085399753,-500.0,0.00043287,120]
[336731411,1725085399803,-1968.84,0.00043287,120]
[336731412,1725085399851,-500.0,0.00043287,120]
[336731413,1725085399900,-1518.96,0.00043287,120]
[336731414,1725085399948,-1835.9,0.00043287,120]
[336731415,1725085399996,-1044.01,0.00043287,120]
[336731416,1725085400049,-603.33,0.00043287,120]
[336731417,1725085400098,-805.02,0.00043287,120]
[336731418,1725085400145,-179.74800567,0.00043287,120]
[336731419,1725085400192,-2179.57,0.00043287,120]
[336731420,1725085400240,-1640.29,0.00043287,120]
[336731421,1725085400287,-1667.23,0.00043287,120]
[336731422,1725085400335,-500.0,0.00043287,120]
[336731423,1725085400386,-1646.21,0.00043287,120]
[336731424,1725085400435,-591.32,0.00043287,120]
[336731425,1725085400484,-795.81,0.00043287,120]
[336731426,1725085400535,-877.02,0.00043287,120]
[336731427,1725085400584,-2067.77,0.00043287,120]
[336731428,1725085400635,-608.39,0.00043287,120]
[336731429,1725085400685,-1275.11,0.00043287,120]
[336731430,1725085400734,-531.98218473,0.00043287,120]
[336731431,1725085400781,-500.0,0.00043287,120]
[336731432,1725085400831,-572.01,0.00043287,120]
[336731433,1725085400881,-500.0,0.00043287,120]
[336731434,1725085400932,-1704.35,0.00043287,120]
[336731435,1725085400983,-844.24,0.00043287,120]
[336731436,1725085401037,-606.37,0.00043287,120]
[336731437,1725085401089,-1379.1,0.00043287,120]
[336731438,1725085401139,-2069.4,0.00043287,120]
[336731439,1725085401188,-500.0,0.00043287,120]
[336731440,1725085401242,-573.28,0.00043287,120]
[336731441,1725085401294,-1830.7,0.00043287,120]
[336731442,1725085401343,-936.23,0.00043287,120]
[336731443,1725085401396,-505.41,0.00043287,120]
[336731444,1725085401445,-500.0,0.00043287,120]
[336731445,1725085401492,-565.82,0.00043287,120]
[336731446,1725085401539,-500.0,0.00043287,120]
[336731447,1725085401590,-500.0,0.00043287,120]
[336731448,1725085401638,-802.68,0.00043287,120]
[336731449,1725085401689,-1846.73,0.00043287,120]
[336731450,1725085401741,-500.0,0.00043287,120]
[336731451,1725085401792,-500.0,0.00043287,120]
[336731452,1725085401841,-1624.05,0.00043287,120]
[336731453,1725085401888,-709.12,0.00043287,120]
[336731454,1725085401941,-1465.91,0.00043287,120]
[336731455,1725085401987,-508.15,0.00043287,120]
[336731456,1725085402035,-1707.44,0.00043287,120]
[336731457,1725085402081,-500.0,0.00043287,120]
[336731458,1725085402131,-547.99661513,0.00043287,120]
[336731459,1725085402179,-829.84,0.00043287,120]
[336731460,1725085402234,-500.0,0.00043287,120]
[336731461,1725085402286,-695.91,0.00043287,120]
[336731462,1725085402335,-508.01,0.00043287,120]
[336731463,1725085402384,-500.0,0.00043287,120]
[336731464,1725085402432,-500.0,0.00043287,120]
[336731465,1725085402480,-1694.24,0.00043287,120]
[336731466,1725085402526,-1329.5,0.00043287,120]
[336731467,1725085402744,-1254.74,0.00043287,120]
[336731468,1725085402792,-500.0,0.00043287,120]
[336731469,1725085402837,-701.74,0.00043287,120]
[336731470,1725085402881,-1718.9,0.00043287,120]
[336731471,1725085402925,-525.22896591,0.00043287,120]
[336731472,1725085402977,-500.0,0.00043287,120]
[336731473,1725085403024,-536.3,0.00043287,120]
[336731474,1725085403068,-500.0,0.00043287,120]
[336731475,1725085403112,-1416.58,0.00043287,120]
[336731476,1725085403159,-1344.35,0.00043287,120]
[336731477,1725085403205,-500.0,0.00043287,120]
[336731478,1725085403261,-1308.79,0.00043287,120]
[336731479,1725085403314,-1065.87,0.00043287,120]
[336731480,1725085403364,-598.48,0.00043287,120]
[336731481,1725085403413,-934.02,0.00043287,120]
[336731482,1725085403464,-1376.61,0.00043287,120]
[336731483,1725085403513,-1682.93,0.00043287,120]
[336731484,1725085403563,-1537.85,0.00043287,120]
[336731485,1725085403614,-546.73,0.00043287,120]
[336731486,1725085403664,-1026.63,0.00043287,120]
[336731487,1725085403715,-500.0,0.00043287,120]
[336731488,1725085403765,-500.0,0.00043287,120]
[336731489,1725085403817,-1312.14,0.00043287,120]
[336731490,1725085403866,-1653.03,0.00043287,120]
[336731491,1725085403918,-500.0,0.00043287,120]
[336731492,1725085403974,-802.15,0.00043287,120]
[336731493,1725085404023,-522.63,0.00043287,120]
[336731494,1725085404071,-393.81332564,0.00043287,120]
[336731495,1725085404120,-500.0,0.00043287,120]
[336731496,1725085404171,-500.0,0.00043287,120]
[336731497,1725085404218,-520.04,0.00043287,120]
[336731498,1725085404269,-1148.46,0.00043287,120]
[336731499,1725085404318,-795.3,0.00043287,120]
[336731500,1725085404368,-554.41,0.00043287,120]
[336731501,1725085404420,-1325.16,0.00043287,120]
[336731502,1725085404474,-500.0,0.00043287,120]
[336731503,1725085404528,-1311.27,0.00043287,120]
[336731504,1725085404581,-1407.95,0.00043287,120]
[336731505,1725085404637,-1863.91,0.00043287,120]
[336731506,1725085404693,-430.59577549,0.00043287,120]
[336731507,1725085404751,-1652.24,0.00043287,120]
[336731508,1725085404808,-641.76,0.00043287,120]
[336731509,1725085404864,-854.31,0.00043287,120]
[336731510,1725085404918,-500.0,0.00043287,120]
[336731511,1725085404974,-527.05,0.00043287,120]
[336731512,1725085405030,-500.0,0.00043287,120]
[336731513,1725085405084,-616.77,0.00043287,120]
[336731514,1725085405139,-2261.76,0.00043287,120]
[336731515,1725085405189,-956.29,0.00043287,120]
[336731516,1725085405242,-500.0,0.00043287,120]
[336731517,1725085405297,-675.48,0.00043287,120]
[336731518,1725085405347,-500.0,0.00043287,120]
[336731519,1725085405397,-979.96,0.00043287,120]
[336731520,1725085405448,-532.04,0.00043287,120]
[336731521,1725085405499,-1078.05,0.00043287,120]
[336731522,1725085405551,-1968.69,0.00043287,120]
[336731523,1725085405602,-528.35,0.00043287,120]
[336731524,1725085405656,-500.0,0.00043287,120]
[336731525,1725085405708,-500.0,0.00043287,120]
[336731526,1725085405759,-1332.09,0.00043287,120]
[336731527,1725085405809,-500.0,0.00043287,120]
[336731528,1725085405860,-876.79,0.00043287,120]
[336731529,1725085405914,-1367.12,0.00043287,120]
[336731530,1725085405969,-500.0,0.00043287,120]
[336731531,1725085406024,-2989.98,0.00043287,120]
[336731532,1725085406077,-1307.87,0.00043287,120]
[336731533,1725085406132,-500.0,0.00043287,120]
[336731534,1725085406186,-1296.01,0.00043287,120]
[336731535,1725085406240,-1533.32,0.00043287,120]
[336731536,1725085406292,-500.0,0.00043287,120]
[336731537,1725085406345,-500.0,0.00043287,120]
[336731538,1725085406401,-600.74,0.00043287,120]
[336731539,1725085406456,-5814.25,0.00043287,120]
[336731540,1725085406510,-629.87,0.00043287,120]
[336731541,1725085406565,-1062.71,0.00043287,120]
[336731542,1725085406618,-533.34,0.00043287,120]
[336731543,1725085406670,-1824.21,0.00043287,120]
[336731544,1725085406726,-1015.22,0.00043287,120]
[336731545,1725085406780,-500.0,0.00043287,120]
[336731546,1725085406833,-951.23,0.00043287,120]
[336731547,1725085406883,-5481.44,0.00043287,120]
[336731548,1725085406940,-894.49,0.00043287,120]
[336731549,1725085406992,-842.88,0.00043287,120]
[336731550,1725085407042,-677.22,0.00043287,120]
[336731551,1725085407094,-1186.34,0.00043287,120]
[336731552,1725085407145,-767.11,0.00043287,120]
[336731553,1725085407198,-5075.61,0.00043287,120]
[336731554,1725085407253,-862.19,0.00043287,120]
[336731555,1725085407313,-528.15,0.00043287,120]
[336731556,1725085407373,-825.37,0.00043287,120]
[336731557,1725085407430,-1753.96,0.00043287,120]
[336731558,1725085407480,-2000.96,0.00043287,120]
[336731559,1725085407534,-1653.61,0.00043287,120]
[336731560,1725085407588,-562.28,0.00043287,120]
[336731561,1725085407636,-500.0,0.00043287,120]
[336731562,1725085407685,-1013.59,0.00043287,120]
[336731563,1725085407735,-546.3,0.00043287,120]
[336731564,1725085407782,-1776.62,0.00043287,120]
[336731565,1725085407827,-500.0,0.00043287,120]
[336731566,1725085407876,-3910.3,0.00043287,120]
[336731567,1725085407923,-1570.05,0.00043287,120]
[336731568,1725085407975,-764.94,0.00043287,120]
[336731569,1725085408027,-500.0,0.00043287,120]
[336731570,1725085408077,-500.0,0.00043287,120]
[336731571,1725085408130,-500.0,0.00043287,120]
[336731572,1725085408366,-500.0,0.00043287,120]
[336731573,1725085408423,-500.0,0.00043287,120]
[336731574,1725085408477,-883.9,0.00043287,120]
[336731575,1725085408533,-696.93,0.00043287,120]
[336731576,1725085408587,-500.0,0.00043287,120]
[336731577,1725085408643,-588.87980805,0.00043287,120]
[336731578,1725085408699,-500.0,0.00043287,120]
[336731579,1725085408752,-1372.32,0.00043287,120]
[336731580,1725085408805,-500.0,0.00043287,120]
[336731581,1725085408858,-833.92,0.00043287,120]
[336731582,1725085408910,-664.41,0.00043287,120]
[336731583,1725085408963,-1438.05,0.00043287,120]
[336731584,1725085409015,-500.0,0.00043287,120]
[336731585,1725085409067,-863.53,0.00043287,120]
[336731586,1725085409116,-785.33,0.00043287,120]
[336731587,1725085409167,-1603.72,0.00043287,120]
[336731588,1725085409218,-498.74839242,0.00043287,120]
[336731589,1725085409271,-500.0,0.00043287,120]
[336731590,1725085409323,-500.0,0.00043287,120]
[336731591,1725085409375,-2224.87,0.00043287,120]
[336731592,1725085409427,-500.0,0.00043287,120]
[336731593,1725085409475,-1322.92,0.00043287,120]
[336731594,1725085409527,-2404.44,0.00043287,120]
[336731595,1725085409582,-500.0,0.00043287,120]
[336731596,1725085409634,-901.41,0.00043287,120]
[336731597,1725085409687,-610.01,0.00043287,120]
[336731598,1725085409738,-729.12,0.00043287,120]
[336731599,1725085409789,-500.0,0.00043287,120]
[336731600,1725085409839,-1979.21,0.00043287,120]
[336731601,1725085409888,-577.81,0.00043287,120]
[336731602,1725085409939,-500.0,0.00043287,120]
[336731603,1725085409991,-6226.26,0.00043287,120]
[336731604,1725085410039,-666.11,0.00043287,120]
[336731605,1725085410089,-500.0,0.00043287,120]
[336731606,1725085410142,-500.0,0.00043287,120]
[336731607,1725085410198,-2083.88,0.00043287,120]
[336731608,1725085410251,-2247.13,0.00043287,120]
[336731609,1725085410301,-3075.22,0.00043287,120]
[336731610,1725085410350,-2368.94,0.00043287,120]
[336731611,1725085410405,-151.0,0.00043315,120]
[336731612,1725085410456,-150.0,0.00043329,120]
[336731613,1725085410511,-150.0,0.00043477,120]
[336731614,1725085410574,-151.0,0.00043479,120]
[336731615,1725085410640,-1000.0,0.00043542,120]
[336731616,1725085410700,-590.64,0.00043561,120]
[336731617,1725085410754,-199.07558871,0.000437,120]
[336731618,1725085410808,-780.23165678,0.000438,120]
[336731619,1725085410861,-155.554048,0.000438,53]
[336731620,1725085410912,-2142.76,0.00043835,120]
[336731621,1725085410960,-2187.81,0.00043835,120]
[336731622,1725085411010,-500.0,0.00043835,120]
[336731623,1725085411060,-500.0,0.00043835,120]
[336731624,1725085411109,-500.0,0.00043835,120]
[336731625,1725085411156,-500.0,0.00043835,120]
[336731626,1725085411206,-500.0,0.00043835,120]
[336731627,1725085411256,-970.41,0.00043835,120]
[336731628,1725085411306,-500.0,0.00043835,120]
[336731629,1725085411356,-1254.2,0.00043835,120]
[336731630,1725085411407,-2064.59,0.00043835,120]
[336731631,1725085411457,-500.0,0.00043835,120]
[336731632,1725085411503,-1831.01,0.00043835,120]
[336731633,1725085411553,-1397.22,0.00043835,120]
[336731634,1725085411600,-500.0,0.00043835,120]
[336731635,1725085411646,-2245.78,0.00043835,120]
[336731636,1725085411694,-500.0,0.00043835,120]
[336731637,1725085411741,-1552.31,0.00043835,120]
[336731638,1725085411788,-2597.83,0.00043835,120]
[336731639,1725085411832,-500.0,0.00043835,120]
[336731640,1725085411878,-1035.53,0.00043835,120]
[336731641,1725085411924,-500.0,0.00043835,120]
[336731642,1725085411973,-744.82,0.00043835,120]
[336731643,1725085412017,-696.59,0.00043835,120]
[336731644,1725085412064,-673.61,0.00043835,120]
[336731645,1725085412110,-1520.87,0.00043835,120]
[336731646,1725085412154,-582.5,0.00043835,120]
[336731647,1725085412199,-500.0,0.00043835,120]
[336731648,1725085412245,-531.38,0.00043835,120]
[336731649,1725085412295,-1554.54,0.00043835,120]
[336731650,1725085412344,-1271.21,0.00043835,120]
[336731651,1725085412392,-506.46,0.00043835,120]
[336731652,1725085412438,-500.0,0.00043835,120]
[336731653,1725085412488,-500.0,0.00043835,120]
[336731654,1725085412539,-525.09,0.00043835,120]
[336731655,1725085412586,-917.3,0.00043835,120]
[336731656,1725085412636,-500.0,0.00043835,120]
[336731657,1725085412684,-500.0,0.00043835,120]
[336731658,1725085412732,-500.0,0.00043835,120]
[336731659,1725085412782,-996.95,0.00043835,120]
[336731660,1725085412830,-696.4,0.00043835,120]
[336731661,1725085412882,-500.0,0.00043835,120]
[336731662,1725085412930,-803.74,0.00043835,120]
[336731663,1725085412983,-748.83,0.00043835,120]
[336731664,1725085413036,-500.0,0.00043835,120]
[336731665,1725085413088,-568.05,0.00043835,120]
[336731666,1725085413139,-1168.88,0.00043835,120]
[336731667,1725085413191,-761.86,0.00043835,120]
[336731668,1725085413248,-991.52,0.00043835,120]
[336731669,1725085413307,-500.0,0.00043835,120]
[336731670,1725085413364,-1384.4,0.00043835,120]
[336731671,1725085413422,-731.6,0.00043835,120]
[336731672,1725085413478,-500.0,0.00043835,120]
[336731673,1725085413534,-2458.49,0.00043835,120]
[336731674,1725085413587,-500.0,0.00043835,120]
[336731675,1725085413648,-540.27,0.00043835,120]
[336731676,1725085413883,-498.43684624,0.00043835,120]
[336731677,1725085413939,-386.60168234,0.00043835,120]
[336731678,1725085413989,-500.0,0.00043835,120]
[336731679,1725085414040,-2118.23,0.00043835,120]
[336731680,1725085414092,-600.38,0.00043835,120]
[336731681,1725085414142,-522.69,0.00043835,120]
[336731682,1725085414190,-1210.64,0.00043835,120]
[336731683,1725085414242,-500.0,0.00043835,120]
[336731684,1725085414296,-500.0,0.00043835,120]
[336731685,1725085414349,-1856.52,0.00043835,120]
[336731686,1725085414401,-500.0,0.00043835,120]
[336731687,1725085414452,-856.67,0.00043835,120]
[336731688,1725085414500,-1905.46,0.00043835,120]
[336731689,1725085414554,-1521.24,0.00043835,120]
[336731690,1725085414609,-500.0,0.00043835,120]
[336731691,1725085414660,-500.0,0.00043835,120]
[336731692,1725085414713,-547.37,0.00043835,120]
[336731693,1725085414762,-500.0,0.00043835,120]
[336731694,1725085414810,-660.11,0.00043835,120]
[336731695,1725085414859,-2325.34,0.00043835,120]
[336731696,1725085414909,-501.74,0.00043835,120]
[336731697,1725085414959,-849.88,0.00043835,120]
[336731698,1725085415011,-2388.65,0.00043835,120]
[336731699,1725085415063,-500.0,0.00043835,120]
[336731700,1725085415111,-2070.59,0.00043835,120]
[336731701,1725085415156,-500.0,0.00043835,120]
[336731702,1725085415205,-1982.62,0.00043835,120]
[336731703,1725085415259,-500.0,0.00043835,120]
[336731704,1725085415313,-500.0,0.00043835,120]
[336731705,1725085415369,-2073.66,0.00043835,120]
[336731706,1725085415425,-909.97,0.00043835,120]
[336731707,1725085415476,-500.0,0.00043835,120]
[336731708,1725085415528,-523.5,0.00043835,120]
[336731709,1725085415575,-500.0,0.00043835,120]
[336731710,1725085415626,-381.48704138,0.00043835,120]
[336731711,1725085415679,-2189.52,0.00043835,120]
[336731712,1725085415733,-500.0,0.00043835,120]
[336731713,1725085415784,-1371.6,0.00043835,120]
[336731714,1725085415836,-804.7,0.00043835,120]
[336731715,1725085415887,-1112.52,0.00043835,120]
[336731716,1725085415937,-2039.92,0.00043835,120]
[336731717,1725085415992,-964.65,0.00043835,120]
[336731718,1725085416046,-540.01032293,0.00043835,120]
[336731719,1725085416096,-500.0,0.00043835,120]
[336731720,1725085416149,-1312.09,0.00043835,120]
[336731721,1725085416203,-500.0,0.00043835,120]
[336731722,1725085416256,-1782.75,0.00043835,120]
[336731723,1725085416308,-500.0,0.00043835,120]
[336731724,1725085416363,-1702.92,0.00043835,120]
[336731725,1725085416417,-1029.68,0.00043835,120]
[336731726,1725085416469,-2092.19,0.00043835,120]
[336731727,1725085416524,-1324.2,0.00043835,120]
[336731728,1725085416578,-500.0,0.00043835,120]
[336731729,1725085416633,-500.0,0.00043835,120]
[336731730,1725085416684,-500.0,0.00043835,120]
[336731731,1725085416737,-500.0,0.00043835,120]
[336731732,1725085416788,-687.53,0.00043835,120]